bitfinex/quotes_BTCUSD_20251226
["timestamp","ask_amount","ask_price","bid_price","bid_amount"]
[1766761798007,0.00010779,87116.0,87082.0,0.07491]
[1766761798258,0.00010779,87116.0,87084.0,0.07491]
[1766761798461,7.9e-07,87116.0,87094.0,0.01148184]
[1766761798750,0.02986374,87137.0,87083.0,0.0256492]
[1766761798751,0.07416,87134.0,87096.0,0.07491]
[1766761798950,0.07416,87134.0,87097.0,0.0210532]
[1766761799290,0.01147736,87128.0,87097.0,0.0210532]
[1766761799579,0.01147789,87124.0,87098.0,0.0118]
[1766761799973,0.0118,87129.0,87096.0,0.00010779]
[1766761800179,0.01147815,87122.0,87097.0,0.0118]
[1766761800383,0.06887138,87119.0,87096.0,0.00010779]
[1766761800537,0.01147894,87116.0,87083.0,0.0716092]
[1766761800743,0.01147973,87110.0,87080.0,0.001]
[1766761800982,0.000465,87080.0,87064.0,0.008671]
[1766761801190,0.000465,87080.0,87060.0,0.07491]
[1766761801387,0.01148263,87088.0,87060.0,0.07491]
[1766761801641,0.01148501,87070.0,87045.0,0.07491]
[1766761801786,0.01148474,87072.0,87030.0,0.07491]
[1766761801972,0.01176,87073.0,87030.0,0.07491]
[1766761801973,0.0114854,87067.0,87033.0,0.12382197]
[1766761802175,0.07416,87069.0,87033.0,0.00035943]
[1766761802533,0.07416,87069.0,87022.0,0.07491]
[1766761802738,0.01149029,87030.0,86989.0,0.07491]
[1766761802914,0.01176,87029.0,86996.0,0.01176]
[1766761803123,0.08564936,87037.0,86996.0,0.08667]
[1766761803300,0.07416,87031.0,86990.0,0.007491]
[1766761803499,0.01176,87030.0,86995.0,0.07491]
[1766761803749,0.01149279,87011.0,86989.0,0.00035978]
[1766761803897,0.01176,87012.0,86989.0,0.00035978]
[1766761804495,0.000359,86989.0,86968.0,0.01176]
[1766761804722,0.08592,86988.0,86947.0,0.07491]
[1766761804888,0.05747323,86998.0,86988.0,0.000549]
[1766761805088,0.01149504,86994.0,86963.0,0.0118]
[1766761805431,0.01149689,86980.0,86948.0,0.007511]
[1766761805550,0.01149689,86980.0,86935.0,0.07491]
[1766761805551,0.000549,86963.0,86953.0,0.01176]
[1766761805959,0.01149795,86972.0,86953.0,0.01176]
[1766761806172,0.01149927,86962.0,86935.0,0.07491]
[1766761806384,0.01150006,86956.0,86932.0,0.0001]
[1766761806622,0.04596,86962.0,86832.0,0.019999]
[1766761806623,0.0001,86932.0,86832.0,0.019999]
[1766761806848,0.01150456,86922.0,86871.0,0.08642132]
[1766761807064,0.01150456,86922.0,86854.0,0.26007444]
[1766761807065,0.24827444,86887.0,86856.0,0.07491]
[1766761807270,0.000449,86871.0,86856.0,0.07491]
[1766761807701,0.01150853,86892.0,86856.0,0.07491]
[1766761807702,0.0118,86882.0,86856.0,0.07491]
[1766761807907,0.01215823,86882.0,86856.0,0.07491]
[1766761808157,0.01215823,86882.0,86850.0,0.01250069]
[1766761808522,0.001099,86862.0,86845.0,0.06633251]
[1766761808753,0.0118,86864.0,86845.0,0.06633251]
[1766761808977,0.00035823,86882.0,86862.0,0.01151251]
[1766761809186,0.00035823,86882.0,86846.0,0.0578]
[1766761809187,0.00035823,86882.0,86870.0,0.07491]
[1766761809361,0.00035823,86882.0,86871.0,0.007491]
[1766761809576,0.00035823,86882.0,86859.0,0.07491]
[1766761810041,0.01151105,86873.0,86845.0,0.06633251]
[1766761810244,0.00035823,86882.0,86846.0,0.24887525]
[1766761810389,0.01151026,86879.0,86845.0,0.06633251]
[1766761810588,0.01151065,86876.0,86845.0,0.06633251]
[1766761810810,0.00035823,86882.0,86845.0,0.06633251]
[1766761810811,0.01151185,86867.0,86845.0,0.06633251]
[1766761811010,0.0118,86866.0,86845.0,2.51e-06]
[1766761811187,5.05,86881.0,86845.0,2.51e-06]
[1766761811389,5.049639,86877.0,86865.0,1e-08]
[1766761811745,5.049639,86877.0,86845.0,2.51e-06]
[1766761811746,0.01151132,86871.0,86845.0,2.51e-06]
[1766761811945,0.4779,86874.0,86845.0,2.51e-06]
[1766761812210,0.4677,86871.0,86845.0,2.51e-06]
[1766761812349,0.01151357,86854.0,86845.0,2.51e-06]
[1766761812554,0.01151397,86851.0,86845.0,2.51e-06]
[1766761812764,0.01151397,86851.0,86808.0,0.02031176]
[1766761812765,5.049639,86854.0,86816.0,0.07491]
[1766761812943,0.11424524,86853.0,86820.0,0.01151808]
[1766761813150,0.01151132,86871.0,86840.0,0.24827444]
[1766761813362,0.01151092,86874.0,86825.0,0.07491]
[1766761813363,0.01151171,86868.0,86825.0,0.07491]
[1766761813547,0.01005732,86870.0,86830.0,0.07491]
[1766761813747,0.00933754,86870.0,86832.0,0.07491]
[1766761813955,0.01151092,86874.0,86832.0,0.07491]
[1766761814175,0.23017424,86891.0,86830.0,0.00035823]
[1766761814176,0.01151251,86862.0,86830.0,0.00035823]
[1766761814391,0.01151291,86859.0,86830.0,0.00035823]
[1766761814598,0.0118,86858.0,86832.0,0.0675]
[1766761814852,0.05755549,86873.0,86832.0,0.0675]
[1766761814853,0.0118,86857.0,86832.0,0.0675]
[1766761815644,0.01151344,86855.0,86832.0,0.0675]
[1766761815852,0.01151264,86861.0,86830.0,0.00035823]
[1766761816083,0.0115137,86853.0,86830.0,0.06785823]
[1766761816379,0.01151397,86851.0,86830.0,0.06785823]
[1766761816504,0.0118,86850.0,86830.0,0.00035823]
[1766761816704,0.05756816,86854.0,86796.0,0.0050025]
[1766761816705,0.23025694,86860.0,86814.0,0.0675]
[1766761816910,0.23025694,86860.0,86794.0,0.05760766]
[1766761816911,0.06857,86840.0,86794.0,0.05760766]
[1766761817111,0.00035823,86860.0,86821.0,0.12897728]
[1766761817336,0.00035823,86860.0,86795.0,0.05251077]
[1766761817537,0.01151291,86859.0,86813.0,0.01151901]
[1766761817735,0.00035823,86860.0,86814.0,0.05784]
[1766761817736,0.12897728,86840.0,86814.0,0.05784]
[1766761817938,0.12897728,86840.0,86812.0,0.0675]
[1766761818116,0.12897728,86840.0,86813.0,0.011354]
[1766761818314,0.12897728,86840.0,86796.0,0.0675]
[1766761818315,0.01151702,86828.0,86796.0,0.0675]
[1766761818531,0.0118,86846.0,86801.0,0.0115206]
[1766761818901,0.01151569,86838.0,86799.0,0.0675]
[1766761819100,0.01151596,86836.0,86800.0,0.012534]
[1766761819298,0.01151582,86837.0,86800.0,0.012534]
[1766761819444,0.00035801,86837.0,86800.0,0.012534]
[1766761819648,0.00035801,86837.0,86812.0,0.0675]
[1766761819850,0.00035801,86837.0,86813.0,0.0793]
[1766761820096,0.00035801,86837.0,86814.0,0.0118]
[1766761820494,0.00035801,86837.0,86813.0,0.0675]
[1766761820806,0.00035801,86837.0,86814.0,0.0118]
[1766761821166,0.04604,86860.0,86816.0,0.12897728]
[1766761821349,0.04604,86860.0,86817.0,0.12897728]
[1766761821552,0.0800837,86853.0,86818.0,0.0118]
[1766761821795,0.06857,86853.0,86818.0,0.0118]
[1766761821995,0.06857,86853.0,86816.0,0.00035801]
[1766761821996,0.0115137,86853.0,86816.0,0.00035801]
[1766761822242,5.049639,86849.0,86816.0,0.00035801]
[1766761822465,0.06857,86863.0,86816.0,0.00035801]
[1766761822466,0.06857,86879.0,86837.0,0.01151582]
[1766761822671,0.080078,86896.0,86845.0,0.01151476]
[1766761822872,0.080078,86896.0,86853.0,0.0675]
[1766761822873,0.06857,86896.0,86853.0,0.0675]
[1766761823074,0.05784,86895.0,86855.0,0.12897728]
[1766761823221,0.06857,86896.0,86856.0,0.0288587]
[1766761823546,0.06857,86896.0,86826.0,0.3455156]
[1766761823547,0.05754667,86886.0,86836.0,0.0675]
[1766761823739,0.001099,86856.0,86837.0,0.01151582]
[1766761823867,0.06857,86884.0,86836.0,0.0675]
[1766761823868,0.0118,86855.0,86836.0,0.06760782]
[1766761824074,0.0118,86857.0,86836.0,0.06760782]
[1766761824273,0.01151132,86871.0,86837.0,0.00676078]
[1766761824472,0.05784,86870.0,86840.0,0.0675]
[1766761824700,0.06857,86884.0,86840.0,0.0675]
[1766761824901,0.04604,86887.0,86870.0,0.000549]
[1766761825105,0.04604,86887.0,86852.0,0.12897728]
[1766761825106,0.1518,86916.0,86887.0,0.00055]
[1766761825305,0.04604,86912.0,86887.0,0.00055]
[1766761825480,0.02330589,86912.0,86887.0,0.00055]
[1766761825687,0.0118,86912.0,86869.0,0.01151158]
[1766761825868,0.06857,86920.0,86867.0,0.0118]
[1766761826065,5.049639,86906.0,86867.0,0.00010782]
[1766761826268,0.06857,86915.0,86869.0,0.0675]
[1766761826470,0.06857,86915.0,86872.0,0.01151118]
[1766761826725,0.06932846,86914.0,86873.0,0.0793]
[1766761826993,0.06932846,86914.0,86867.0,0.00010782]
[1766761826994,0.23014165,86903.0,86867.0,0.00010782]
[1766761827214,0.06857,86913.0,86872.0,0.12897728]
[1766761827343,0.01150655,86907.0,86867.0,0.00010782]
[1766761827545,0.0118,86912.0,86867.0,0.00010782]
[1766761827893,0.01150615,86910.0,86867.0,0.00010782]
[1766761828032,0.06857,86935.0,86878.0,0.0675]
[1766761828227,3.04887811,86927.0,86880.0,0.0675]
[1766761828483,0.01150562,86914.0,86880.0,0.0675]
[1766761828686,0.0118,86913.0,86880.0,0.0675]
[1766761829027,0.23006892,86931.0,86879.0,0.03259878]
[1766761829028,0.01150496,86919.0,86881.0,0.19647728]
[1766761829300,0.0118,86915.0,86884.0,0.01150959]
[1766761829554,0.01150218,86940.0,86915.0,0.00055]
[1766761829724,0.0118,86939.0,86915.0,0.00055]
[1766761829921,0.0118,86938.0,86898.0,0.0675]
[1766761830121,0.05750789,86945.0,86898.0,0.0675]
[1766761830366,0.04604,86946.0,86904.0,0.07900695]
[1766761830542,0.08037,86951.0,86907.0,0.01150655]
[1766761830694,0.08037,86951.0,86901.0,0.12897728]
[1766761830695,0.0118,86950.0,86924.0,0.0115043]
[1766761830880,0.00035846,86951.0,86925.0,0.07900417]
[1766761831130,0.01150192,86942.0,86918.0,0.0118]
[1766761831330,0.0118,86945.0,86918.0,0.0118]
[1766761831610,0.01150258,86937.0,86918.0,0.0118]
[1766761831764,0.01150377,86928.0,86902.0,0.0675]
[1766761831947,0.0118,86930.0,86903.0,0.0118]
[1766761832145,0.00035846,86951.0,86903.0,0.0118]
[1766761832146,0.06857,86941.0,86904.0,0.13770028]
[1766761832351,0.0231645,86953.0,86941.0,0.00055]
[1766761832579,0.06857,86979.0,86941.0,0.00090846]
[1766761832785,0.0232462,86983.0,86951.0,0.0675]
[1766761832948,0.04604,86984.0,86952.0,0.15851738]
[1766761833290,0.04604,86984.0,86952.0,0.0793]
[1766761833710,0.0232462,86995.0,86960.0,0.66716716]
[1766761833859,0.0118,86988.0,86953.0,0.0675]
[1766761834058,0.10787304,86999.0,86954.0,0.00793]
[1766761834059,0.02860517,86992.0,86954.0,0.00793]
[1766761834292,0.0118,86991.0,86954.0,0.00793]
[1766761834462,0.01149689,86980.0,86955.0,0.0118]
[1766761834685,0.05748844,86974.0,86955.0,0.0118]
[1766761834899,0.000399,86955.0,86942.0,0.0118]
[1766761835098,0.0118,86963.0,86942.0,0.0118]
[1766761835278,0.01149927,86962.0,86942.0,0.0118]
[1766761835478,0.0118,86963.0,86942.0,0.0118]
[1766761835678,0.0118,86963.0,86931.0,0.0118]
[1766761835876,0.05749873,86959.0,86931.0,0.0118]
[1766761836103,0.01150125,86947.0,86941.0,4.6e-07]
[1766761836278,0.05750912,86943.0,86941.0,4.6e-07]
[1766761836497,0.0232462,86945.0,86911.0,0.0118]
[1766761836697,0.0118,86944.0,86912.0,0.005784]
[1766761837150,0.0118,86943.0,86913.0,0.0675]
[1766761837368,0.00035846,86945.0,86916.0,0.12897728]
[1766761837558,0.0118,86961.0,86943.0,0.000508]
[1766761837758,0.0118,86961.0,86943.0,0.00061582]
[1766761837991,0.02912445,86973.0,86945.0,0.12897728]
[1766761838277,0.05825438,86987.0,86943.0,0.00010782]
[1766761838278,0.02912445,86983.0,86947.0,0.0675]
[1766761838484,0.01149768,86974.0,86943.0,0.00010782]
[1766761838736,0.01149755,86975.0,86947.0,0.0118]
[1766761838947,4.1e-05,86947.0,86930.0,0.0675]
[1766761839145,0.00014849,86947.0,86938.0,0.0118]
[1766761839346,0.14224918,86974.0,86938.0,0.0118]
[1766761839566,0.02335407,86974.0,86945.0,0.01150152]
[1766761839783,0.00010787,86974.0,86947.0,0.0675]
[1766761839988,0.00010787,86974.0,86948.0,0.02194806]
[1766761840203,0.00010787,86974.0,86949.0,0.0118]
[1766761840413,8.7e-07,86974.0,86949.0,0.0118]
[1766761840830,0.0118,86973.0,86936.0,0.04604]
[1766761841038,0.0118,86973.0,86937.0,0.14077728]
[1766761841242,8.7e-07,86974.0,86939.0,0.0675]
[1766761841458,0.01180087,86974.0,86944.0,0.0675]
[1766761841893,0.01180087,86974.0,86945.0,0.0118]
[1766761842096,0.01149795,86972.0,86945.0,0.0118]
[1766761842254,0.02329855,86974.0,86938.0,0.04604]
[1766761842451,0.01149874,86966.0,86939.0,0.0059685]
[1766761842751,0.0114994,86961.0,86939.0,0.0675]
[1766761842977,0.01150178,86943.0,86924.0,0.0675]
[1766761843154,0.01150073,86951.0,86925.0,0.0118]
[1766761843356,0.02330046,86953.0,86924.0,0.0675]
[1766761843357,0.01150112,86948.0,86924.0,0.0675]
[1766761843563,0.01150271,86936.0,86885.0,0.01150946]
[1766761843778,0.01150271,86936.0,86905.0,0.0118]
[1766761843779,0.0118,86936.0,86905.0,0.0118]
[1766761843980,0.0118,86935.0,86906.0,0.0118]
[1766761844246,0.0118,86935.0,86906.0,0.01215846]
[1766761844402,0.0118,86935.0,86907.0,0.00866385]
[1766761844606,0.0115035,86930.0,86907.0,0.00866385]
[1766761844809,0.0115035,86930.0,86906.0,0.00035846]
[1766761844810,0.000107,86907.0,86906.0,0.00035846]
[1766761845013,0.000107,86907.0,86906.0,4.6e-07]
[1766761845249,0.011907,86907.0,86906.0,4.6e-07]
[1766761845377,0.0118,86907.0,86906.0,4.6e-07]
[1766761845576,0.01150695,86904.0,86873.0,0.0118]
[1766761845781,0.0118,86903.0,86874.0,0.075936]
[1766761846019,0.07122,86920.0,86874.0,0.075936]
[1766761846020,0.02912445,86916.0,86874.0,0.075936]
[1766761846248,0.01150536,86916.0,86876.0,0.06796]
[1766761846458,0.05784,86915.0,86879.0,0.06796]
[1766761846670,0.02912445,86921.0,86879.0,0.06796]
[1766761846877,0.05784,86920.0,86880.0,0.02168203]
[1766761847305,0.06902669,86923.0,86880.0,0.08964203]
[1766761847521,0.06902669,86923.0,86881.0,0.06796]
[1766761847522,0.05752981,86912.0,86881.0,0.06796]
[1766761847874,0.01150589,86912.0,86882.0,0.02186193]
[1766761848043,0.05753077,86910.0,86882.0,0.0118]
[1766761848241,0.01150642,86908.0,86882.0,0.0118]
[1766761848449,0.01150655,86907.0,86882.0,0.0118]
[1766761848651,0.01150708,86903.0,86882.0,0.0118]
[1766761848867,0.0118,86902.0,86882.0,0.0118]
[1766761849107,0.07122,86939.0,86902.0,0.0008]
[1766761849322,0.0118,86924.0,86902.0,0.0008]
[1766761849534,0.07122,86939.0,86902.0,0.0008]
[1766761849746,0.0776725,86948.0,86897.0,0.0118]
[1766761849747,0.03883208,86944.0,86904.0,0.06796]
[1766761849969,0.03883208,86948.0,86909.0,0.06796]
[1766761850168,0.03883208,86948.0,86903.0,0.12897728]
[1766761850169,0.01150192,86942.0,86918.0,0.06796]
[1766761850308,0.01150258,86937.0,86910.0,0.03005096]
[1766761850514,0.01150311,86933.0,86904.0,0.0118]
[1766761850714,0.0118,86936.0,86904.0,0.0118]
[1766761850911,0.01150536,86916.0,86880.0,0.06796]
[1766761851154,0.01150522,86917.0,86881.0,0.14077728]
[1766761851155,0.0118,86915.0,86881.0,0.14077728]
[1766761851368,0.0118,86916.0,86886.0,0.06796]
[1766761851538,0.04604,86927.0,86886.0,0.06796]
[1766761851539,0.0118,86923.0,86886.0,0.06796]
[1766761851918,0.23006555,86932.0,86882.0,0.02547773]
[1766761851919,0.03883208,86936.0,86923.0,0.00055]
[1766761852134,0.03883208,86936.0,86913.0,0.0118]
[1766761852135,0.00035928,86936.0,86913.0,0.0118]
[1766761852556,0.06900056,86956.0,86913.0,0.0118]
[1766761852557,0.0118,86949.0,86914.0,0.12897728]
[1766761852758,0.0118,86949.0,86915.0,0.02087373]
[1766761852931,0.0118,86949.0,86915.0,0.03237922]
[1766761853151,0.0118,86949.0,86915.0,0.02087373]
[1766761853356,0.03883208,86960.0,86930.0,0.12897728]
[1766761853702,0.03883208,86966.0,86931.0,0.08221448]
[1766761853945,0.0118,86970.0,86934.0,0.07946297]
[1766761854238,0.0118,86970.0,86931.0,0.02469773]
[1766761854239,0.03883208,86974.0,86936.0,0.06796]
[1766761854371,0.05063208,86972.0,86936.0,0.06796]
[1766761854572,0.03883208,86969.0,86936.0,0.06796]
[1766761854768,0.01149821,86970.0,86934.0,0.0118]
[1766761854769,0.01150033,86954.0,86934.0,0.0118]
[1766761855012,0.05033175,86959.0,86934.0,0.0118]
[1766761855216,0.03883208,86956.0,86934.0,0.0118]
[1766761855436,0.03883208,86959.0,86934.0,0.0118]
[1766761855640,0.01149716,86978.0,86934.0,0.0118]
[1766761855641,0.03883208,86968.0,86935.0,0.12897728]
[1766761855846,0.05063208,86970.0,86935.0,0.06796]
[1766761856004,0.05063208,86970.0,86934.0,0.0118]
[1766761856005,0.03883208,86963.0,86933.0,0.0118]
[1766761856200,0.03883208,86961.0,86932.0,0.0118]
[1766761856400,0.03883208,86963.0,86932.0,0.0118]
[1766761856628,0.05063208,86962.0,86933.0,0.12897728]
[1766761856828,0.0118,86962.0,86934.0,0.01637843]
[1766761857347,0.0118,86962.0,86935.0,0.01150284]
[1766761857650,0.0118,86962.0,86934.0,0.0278814]
[1766761857651,0.0118,86962.0,86934.0,0.01637843]
[1766761857865,0.03883208,86965.0,86935.0,0.12897728]
[1766761858079,0.0118,86970.0,86935.0,0.12897728]
[1766761858212,0.0118,86970.0,86938.0,0.06796]
[1766761858892,0.0118,86970.0,86932.0,0.0118]
[1766761858893,0.01149834,86969.0,86932.0,0.0118]
[1766761859030,0.0118,86970.0,86932.0,0.0118]
[1766761859232,0.01149557,86990.0,86940.0,0.19693728]
[1766761859415,0.04604,86983.0,86942.0,0.06796]
[1766761859623,0.07122,86992.0,86955.0,0.12897728]
[1766761859838,0.0118,86991.0,86956.0,0.0118]
[1766761860034,0.0118,86991.0,86966.0,0.01149874]
[1766761860277,0.07122,87007.0,86967.0,0.01239923]
[1766761860481,0.01149504,86994.0,86956.0,0.06796]
[1766761860691,0.00055,86956.0,86923.0,0.06796]
[1766761861006,0.0118,86958.0,86928.0,0.12897728]
[1766761861157,0.0118,86958.0,86924.0,0.0118]
[1766761861158,0.01150033,86954.0,86911.0,0.01150602]
[1766761861365,0.07122,86963.0,86925.0,0.01150417]
[1766761861569,0.01149954,86960.0,86926.0,0.0118]
[1766761861907,0.01150006,86956.0,86926.0,0.01215928]
[1766761862110,0.01149993,86957.0,86926.0,0.01215928]
[1766761862312,0.07122,86959.0,86926.0,0.01215928]
[1766761862512,0.01150046,86953.0,86926.0,0.01215928]
[1766761862799,0.0118,86962.0,86894.0,0.01150827]
[1766761862800,0.00073972,86926.0,86894.0,0.01150827]
[1766761862969,0.00073972,86926.0,86897.0,0.05784]
[1766761862970,0.001099,86926.0,86897.0,0.05784]
[1766761863161,0.001099,86926.0,86901.0,0.01150734]
[1766761863162,0.00035928,86926.0,86901.0,0.01150734]
[1766761863508,0.00035928,86926.0,86900.0,0.12897728]
[1766761864801,0.00035928,86926.0,86902.0,0.01150721]
[1766761864930,0.05751098,86940.0,86926.0,0.000359]
[1766761865138,0.01150417,86925.0,86898.0,0.005784]
[1766761865506,0.2300504,86938.0,86899.0,0.0118]
[1766761865507,0.0118,86927.0,86899.0,0.0118]
[1766761865635,0.0118,86927.0,86900.0,0.00639833]
[1766761865843,0.0233039,86927.0,86900.0,0.00639833]
[1766761866070,0.0118,86927.0,86898.0,0.00035928]
[1766761866273,0.01150549,86915.0,86898.0,0.00035928]
[1766761866475,0.08302,86927.0,86879.0,0.04604]
[1766761866476,0.0118,86914.0,86879.0,0.04604]
[1766761866676,0.01150602,86911.0,86880.0,0.0114]
[1766761866855,0.0115035,86930.0,86884.0,0.06796]
[1766761867051,0.0118,86926.0,86885.0,0.01150946]
[1766761867261,0.07122,86944.0,86926.0,0.000359]
[1766761867465,0.00827209,86944.0,86926.0,0.000359]
[1766761867804,0.01150324,86932.0,86909.0,0.0118]
[1766761867954,0.14955037,86936.0,86896.0,0.06796]
[1766761868162,0.0118,86931.0,86903.0,0.06796]
[1766761868365,0.01215934,86931.0,86904.0,0.02202445]
[1766761869213,0.00035934,86931.0,86906.0,0.01150668]
[1766761869418,0.00035934,86931.0,86907.0,0.08036002]
[1766761869588,0.00035934,86931.0,86907.0,0.07976]
[1766761869790,0.00016934,86931.0,86907.0,0.07976]
[1766761869990,0.00016934,86931.0,86913.0,0.01150575]
[1766761870181,0.02351216,86949.0,86921.0,0.06796]
[1766761870379,0.01150086,86950.0,86922.0,0.0118]
[1766761870579,0.01150178,86943.0,86922.0,0.0118]
[1766761870957,0.03501236,86955.0,86922.0,0.0118]
[1766761871164,0.02351216,86954.0,86922.0,0.0118]
[1766761871447,0.000549,86922.0,86921.0,0.00035934]
[1766761871825,0.000549,86922.0,86921.0,3.4e-07]
[1766761872002,0.01150417,86925.0,86890.0,0.06796]
[1766761872206,0.00035934,86925.0,86894.0,0.0118]
[1766761872444,0.0115043,86924.0,86895.0,0.007976]
[1766761872587,0.00035934,86925.0,86895.0,0.007976]
[1766761872944,0.01150456,86922.0,86894.0,0.0118]
[1766761873188,0.05752813,86914.0,86887.0,0.0118]
[1766761873461,0.05752813,86914.0,86880.0,0.0114]
[1766761873462,0.00019,86894.0,86880.0,0.0114]
[1766761873669,0.05753812,86899.0,86880.0,0.0114]
[1766761873863,0.05753812,86899.0,86868.0,0.04604]
[1766761873864,0.0118,86898.0,86871.0,0.0118]
[1766761874725,0.0118,86898.0,86871.0,0.01190749]
[1766761875437,0.06933916,86898.0,86871.0,0.00010749]
[1766761875644,0.0115084,86893.0,86871.0,0.00010749]
[1766761875843,0.01150814,86895.0,86871.0,0.00010749]
[1766761876049,0.01150893,86889.0,86871.0,0.00010749]
[1766761876311,0.01150853,86892.0,86871.0,0.00010749]
[1766761876571,0.04994169,86898.0,86851.0,0.04604]
[1766761876572,0.000107,86871.0,86854.0,0.0118]
[1766761876767,0.0001077,86871.0,86854.0,0.0118]
[1766761877636,0.0001077,86871.0,86841.0,0.00025339]
[1766761877840,0.01150946,86885.0,86841.0,0.00025339]
[1766761877841,0.07833037,86899.0,86870.0,0.01151145]
[1766761878064,0.07833037,86899.0,86867.0,0.07293]
[1766761878065,0.07424794,86899.0,86871.0,0.00855115]
[1766761878265,0.07414,86896.0,86861.0,0.0118]
[1766761878605,4.988239,86897.0,86811.0,0.0002]
[1766761878606,0.07414,86883.0,86841.0,0.01205339]
[1766761878806,0.01151052,86877.0,86842.0,0.12897728]
[1766761878997,0.01151145,86870.0,86843.0,0.01410307]
[1766761879196,0.01151145,86870.0,86841.0,0.01205339]
[1766761879197,0.0118,86869.0,86841.0,0.00025339]
[1766761879394,0.0115133,86856.0,86841.0,3.39e-06]
[1766761879695,0.00024961,86841.0,86822.0,0.0118]
[1766761879893,0.00024961,86841.0,86826.0,0.12897728]
[1766761880096,0.0118,86862.0,86827.0,0.01522948]
[1766761880779,0.0118,86862.0,86811.0,0.0002]
[1766761880780,0.01151397,86851.0,86811.0,0.0002]
[1766761880923,0.01151397,86851.0,86819.0,0.0118]
[1766761880924,0.00035978,86851.0,86819.0,0.0118]
[1766761881122,0.0118,86850.0,86819.0,0.0118]
[1766761881323,0.0118,86850.0,86819.0,0.01794378]
[1766761881739,0.07414,86861.0,86823.0,0.12897728]
[1766761881922,0.0118,86860.0,86829.0,0.01151688]
[1766761882119,0.07414,86877.0,86838.0,0.07293]
[1766761882320,0.0118,86876.0,86839.0,0.0118]
[1766761882541,0.02125526,86875.0,86840.0,0.008473]
[1766761882748,0.02125526,86875.0,86815.0,0.07293]
[1766761882749,0.01151251,86862.0,86815.0,0.07293]
[1766761882979,0.02125526,86875.0,86815.0,0.07293]
[1766761882980,0.0118,86861.0,86823.0,0.12897728]
[1766761883185,0.0118,86865.0,86829.0,0.08444688]
[1766761883361,0.0118,86865.0,86829.0,0.07293]
[1766761883569,0.0118,86865.0,86830.0,0.02940478]
[1766761883745,0.0118,86865.0,86830.0,0.10233478]
[1766761883954,0.0118,86865.0,86837.0,0.12897728]
[1766761884360,0.05784,86874.0,86839.0,0.07293]
[1766761884979,0.07414,86873.0,86840.0,0.0118]
[1766761885181,0.05784,86874.0,86840.0,0.08473]
[1766761885497,0.05784,86874.0,86841.0,0.00962462]
[1766761885700,0.05784,86874.0,86843.0,0.07293]
[1766761886877,0.01151132,86871.0,86843.0,0.07293]
[1766761887117,0.06935092,86874.0,86843.0,0.07293]
[1766761887118,0.01151105,86873.0,86843.0,0.07293]
[1766761887271,0.06935092,86874.0,86843.0,0.07293]
[1766761887471,0.01151105,86873.0,86844.0,0.00943546]
[1766761887891,0.05784,86874.0,86845.0,0.12897728]
[1766761888110,0.05784,86874.0,86832.0,0.04604]
[1766761888111,0.0118,86874.0,86831.0,0.07293]
[1766761888314,0.01151145,86870.0,86839.0,0.04608]
[1766761888469,0.01151132,86871.0,86839.0,0.04608]
[1766761888670,0.01151145,86870.0,86839.0,0.04608]
[1766761888870,0.01151132,86871.0,86833.0,0.07293]
[1766761889137,0.01151118,86872.0,86835.0,0.07293]
[1766761889305,0.01151118,86872.0,86836.0,0.07148736]
[1766761889708,0.06906973,86869.0,86836.0,0.07148736]
[1766761889908,0.01151171,86868.0,86837.0,0.0118]
[1766761890319,0.01151224,86864.0,86837.0,0.0118]
[1766761890651,0.06906712,86872.0,86837.0,0.08473]
[1766761890814,0.0118,86871.0,86837.0,0.07293]
[1766761891016,0.0118,86871.0,86838.0,0.0118]
[1766761891017,0.01151357,86854.0,86838.0,0.0118]
[1766761891204,0.01151357,86854.0,86833.0,0.00025325]
[1766761891205,0.00055,86838.0,86833.0,0.00025325]
[1766761891402,0.00055,86838.0,86833.0,3.25e-06]
[1766761892236,0.0118,86865.0,86834.0,0.08473]
[1766761892516,0.0118,86865.0,86834.0,0.0118]
[1766761892741,0.02331211,86865.0,86834.0,0.0118]
[1766761892973,0.01151145,86870.0,86833.0,3.25e-06]
[1766761892974,0.06860097,86891.0,86855.0,0.12897728]
[1766761893141,0.05762936,86944.0,86856.0,0.08473]
[1766761893142,0.01150853,86892.0,86856.0,0.08473]
[1766761893357,0.0118,86893.0,86857.0,0.024881]
[1766761893781,0.0118,86893.0,86857.0,0.013081]
[1766761894012,0.06905897,86883.0,86856.0,0.07293]
[1766761894201,0.01151052,86877.0,86857.0,0.0001077]
[1766761894424,0.0118,86882.0,86857.0,0.0001077]
[1766761894598,0.01151026,86879.0,86857.0,0.0001077]
[1766761894775,0.01151012,86880.0,86857.0,0.0001077]
[1766761894980,0.0118,86882.0,86857.0,0.0001077]
[1766761895804,0.0118,86882.0,86858.0,0.00848377]
[1766761896007,0.0118,86882.0,86857.0,0.0001077]
[1766761896209,0.06905997,86881.0,86858.0,0.0118]
[1766761896426,0.06905997,86881.0,86836.0,0.01151596]
[1766761896427,0.06906263,86878.0,86842.0,0.07293]
[1766761896635,0.01161831,86878.0,86843.0,0.05788]
[1766761896876,0.00010792,86878.0,86846.0,0.12897728]
[1766761897020,0.00010792,86878.0,86848.0,0.07293]
[1766761897953,0.00010792,86878.0,86850.0,0.07293]
[1766761899126,0.00010792,86878.0,86852.0,0.07293]
[1766761899374,0.00010792,86878.0,86853.0,0.05788]
[1766761899589,0.0118,86882.0,86881.0,0.0003645]
[1766761899894,0.0118,86882.0,86881.0,4.5e-06]
[1766761900733,0.01150999,86881.0,86858.0,0.0118]
[1766761900968,0.01151039,86878.0,86858.0,0.01190792]
[1766761901154,0.01151105,86873.0,86858.0,0.00010792]
[1766761901353,0.01151065,86876.0,86858.0,0.00010792]
[1766761901583,0.01151012,86880.0,86858.0,0.00010792]
[1766761901752,0.05755235,86878.0,86858.0,0.00010792]
[1766761901957,0.01151052,86877.0,86858.0,0.00010792]
[1766761902300,0.01151039,86878.0,86858.0,0.00010792]
[1766761902503,0.13809956,86882.0,86858.0,0.00010792]
[1766761902806,0.0118,86882.0,86858.0,0.07303792]
[1766761902936,0.0118,86882.0,86859.0,0.00848379]
[1766761903564,0.07847454,86902.0,86859.0,0.00848379]
[1766761903565,0.07847454,86903.0,86871.0,0.06919]
[1766761903855,0.05724,86912.0,86873.0,0.08070105]
[1766761904061,0.01150747,86900.0,86874.0,0.0118]
[1766761904244,0.05724,86905.0,86875.0,0.0118]
[1766761904625,0.0118,86911.0,86876.0,0.08538065]